Cogmind - Beta 14 @@@ ROGUE MODE // 2025.01.18 @ 13:41:47 Player: puppuppit Result: Destroyed self with Rocket Launcher Performance ------------- Evolutions (0) 0 Regions Visited (2) 400 Robots Destroyed (48) 240 Value Destroyed (797) 797 Prototype IDs (3) 60 Alien Tech Used (0) 0 Bonus (6) 6 TOTAL SCORE: 1503 Bonus ------- High Alert Combat Kills 6 Cogmind --------- Core Integrity 0/250 Matter 91/300 Energy 95/100 System Corruption 0% Temperature Cool (0) Movement Core (150) Ox2 Location -10/Mines Parts ------- > --- POWER (1) -------- (None) > --- PROPULSION (2) --- (None) > --- UTILITY (2) ------ Small Storage Unit > --- WEAPON (2) ------- Rocket Launcher > --- INVENTORY (8) ---- Hover Unit Hover Unit High-capacity Matter Pod (200) Assault Rifle Assault Rifle Light Cannon Peak State ------------ > --- POWER ------------ Light Nuclear Core > --- PROPULSION ------- Wheel Wheel > --- UTILITY ---------- Small Storage Unit Improved Terrain Scanner > --- WEAPON ----------- Assault Rifle Assault Rifle > --- INVENTORY -------- Light Ion Engine Wheel Hover Unit Hover Unit Large Matter Pod Medium Laser Light Cannon Light Cannon [Rating: 11] Favorites ----------- Power Light Nuclear Core Engine Light Ion Engine Power Core Light Nuclear Core Propulsion Wheel Wheel Wheel Hover Unit Hover Unit Utility Small Storage Unit Device Improved Terrain Scanner Storage Small Storage Unit Weapon Light Cannon Energy Gun EM Pulse Gun Ballistic Gun Assault Rifle Ballistic Cannon Light Cannon Launcher Grenade Launcher Build | -11 -10 -10 ------- Run | Yrd Mat Min Slots Evolved . | . . . Power . | . . . Propulsion . | . . . Utility . | . . . Weapon . | . . . Parts Attached 43 | 11 27 5 Power 4 | 2 2 . Engine 3 | 2 1 . Core 1 | . 1 . Reactor . | . . . Propulsion 13 | 4 7 2 Treads . | . . . Leg . | . . . Wheel 8 | 4 4 . Hover 5 | . 3 2 Flight . | . . . Utility 3 | 2 1 . Device 2 | 1 1 . Storage 1 | 1 . . Processor . | . . . Hackware . | . . . Protection . | . . . Artifact . | . . . Weapon 23 | 3 17 3 Energy Gun 2 | 2 . . Energy Cannon . | . . . Ballistic Gun 4 | 1 3 . Ballistic Cannon 9 | . 8 1 Launcher 8 | . 6 2 Special Weapon . | . . . Impact Weapon . | . . . Slashing Weapon . | . . . Piercing Weapon . | . . . Special Melee Weapon . | . . . Unidentified Prototypes . | . . . Parts Lost 10 | . 4 6 Power 2 | . 2 . Propulsion 6 | . 2 4 Utility 1 | . . 1 Weapon 1 | . . 1 Highest Loss Streak 3 | . 1 3 To Critical Strikes . | . . . Average Slot Usage (%) 89 | . 95 72 Engine 3 | . 4 . Core 4 | . 5 . Wheel 17 | . 23 . Hover 9 | . 4 26 Device 11 | . 14 3 Storage 14 | . 14 14 Energy Gun 2 | . 3 . Ballistic Gun 11 | . 15 . Ballistic Cannon 13 | . 8 27 Peak Build Rating 11 | 9 11 6 Average Rating 7 | 6 8 5 On Entrance 5 | . 9 6 Naked Turns . | . . . Heaviest Build 17 | 14 17 12 Greatest Support 32 | 32 20 12 Greatest Overweight (x) 2 | 2 1 1 Average Overweight (x) . | . . . Largest Inventory Capacity 8 | 8 8 8 Average Capacity 7 | 7 8 8 Most Carried 8 | 2 8 8 Average Carried 6 | . 6 7 Final Capacity 8 | 8 8 8 Final Carried 8 | 1 8 6 Class Distribution -------------------- 61% | Mutant 38% | Scavenger-Mutant Dominant Class ---------------- Mutant | -10/Materials Mutant | -10/Mines Resources | -11 -10 -10 ----------- Run | Yrd Mat Min Matter Collected 1356 | 271 887 198 Remotely 415 | . 293 122 Salvage Created 1173 | 146 843 184 Parts 101 | 8 66 27 Haulers Intercepted 2 | . 2 . Recyclers Shooed 2 | . 2 . Parts Field Recycled . | . . . Retrieved Matter . | . . . Parts Self-Destructed . | . . . Prevented . | . . . Kills | -11 -10 -10 ------- Run | Yrd Mat Min Combat Hostiles Destroyed 40 | . 16 24 Guns 5 | . 5 . Cannons 18 | . 2 16 AOE 17 | . 9 8 Classes Destroyed 10 | 2 7 1 Worker 4 | . 3 1 Builder 3 | . 2 1 Tunneler 2 | 2 . . Hauler 2 | . 2 . Recycler 3 | 1 2 . Operator 1 | . 1 . Watcher 3 | . 3 . Swarmer 17 | . 3 14 Grunt 13 | . 13 . Assembled 10 | . . 10 Best Kill Streak 10 | 2 7 10 Combat Bots Only 10 | . 5 10 Max Kills in Single Turn 3 | 1 2 3 Gunslinging . | . . . Exploded 3 | . 2 3 Melee . | . . . Uniques/NPCs Destroyed . | . . . Combat | -11 -10 -10 -------- Run | Yrd Mat Min Hostile Shots Fired 114 | . 60 54 Missed 42 | . 24 18 Damage Taken 1128 | . 605 523 Core 250 | . 69 181 Absorbed by Shields . | . . . Regen/Repaired (Parts) 34 | . 34 . Core Remaining (%) 100 | 100 . . Volleys Fired 117 | 11 70 36 Largest 2 | 2 2 2 Hottest 70 | 70 70 70 Shots Fired 227 | 22 138 67 Gun 123 | 22 101 . Cannon 91 | . 29 62 Launcher 13 | . 8 5 Special . | . . . Kinetic 187 | 11 114 62 Thermal 4 | 4 . . Explosive 13 | . 8 5 Electromagnetic 23 | 7 16 . Robot Hit Streak 12 | 4 9 12 Robot Miss Streak 5 | 4 5 3 Penetration Max . | . . . Secondary Targets . | . . . Shots Hit Robots 125 | 13 75 37 Core Hits 78 | 5 42 31 Critical Kills . | . . . Critical Parts Destroyed 1 | . 1 . Critical Strikes 1 | . 1 . Destroy 1 | . 1 . Melee Attacks . | . . . Impact . | . . . Slashing . | . . . Piercing . | . . . Sneak Attacks . | . . . Combat Hostiles . | . . . Follow-up Attacks . | . . . Damage Inflicted 2895 | 250 1529 1116 Guns 961 | 197 764 . Cannons 878 | . 218 660 Explosions 1056 | 53 547 456 Melee . | . . . Ramming . | . . . Kinetic 1607 | 90 857 660 Thermal 90 | 90 . . Explosive 1003 | . 547 456 Electromagnetic 195 | 70 125 . Impact . | . . . Slashing . | . . . Piercing . | . . . Highest Corruption . | . . . Average Corruption . | . . . Corruption Purged . | . . . Corruption Blocked . | . . . Overload Shots . | . . . Overflow Damage 87 | . 63 24 Projectiles 14 | . . 14 Explosions 73 | . 63 10 Melee . | . . . Knockbacks 5 | . 1 4 Impact . | . . . Kinetic 4 | . 1 3 Secondary 1 | . . 1 Self-Inflicted Damage 193 | . 114 79 Shots 6 | . 3 3 Rammed . | . . . Targets Rammed . | . . . Kicked . | . . . Crushed . | . . . Highest Temperature 67 | 36 67 2 Average Temperature 17 | 19 21 1 Received Heat Transfer 258 | . 258 . Siege Activations . | . . . Robots Corrupted . | . . . Combat Hostiles . | . . . Parts Fried 1 | . 1 . Impact Corruptions . | . . . Robots Melted . | . . . Combat Hostiles . | . . . Parts Melted . | . . . Heat Transferred 211 | 211 . . Parts Sabotaged . | . . . Parts Stolen . | . . . Parts Stripped . | . . . Power Chain Reactions 1 | 1 . . Alert | -11 -10 -10 ------- Run | Yrd Mat Min Peak Influence 465 | 15 252 465 Initial 91 | . 9 91 Average 155 | 7 121 298 Maximum Alert Level 2 | . 1 2 Low Security (%) 65 | 100 75 26 Level 1 29 | . 24 51 Level 2 5 | . . 22 Level 3 . | . . . Level 4 . | . . . Level 5 . | . . . High Security . | . . . Max Security . | . . . Squads Dispatched 3 | . 3 . Investigation 2 | . 2 . Extermination . | . . . Reinforcement 1 | . 1 . Assault . | . . . Garrison . | . . . Intercept . | . . . Searches Triggered . | . . . Construction Impeded . | . . . Haulers Reinforced . | . . . Active Scanning Responses . | . . . Cargo Convoy Interrupts . | . . . Stealth | -11 -10 -10 --------- Run | Yrd Mat Min Distress Signals 3 | . 1 2 Communications Jammed . | . . . Distress Signals . | . . . Times Spotted 56 | . 27 29 Peak Tracking Total 12 | . 5 12 Tactical Retreats 2 | . 1 1 Traps | -11 -10 -10 ------- Run | Yrd Mat Min Traps Triggered 3 | . 3 . Indirectly . | . . . Trap Hack Attempts . | . . . Triggered . | . . . Disarmed . | . . . Reprogrammed . | . . . Reused . | . . . Traps Extracted . | . . . Installed . | . . . Triggered . | . . . Machines | -11 -10 -10 ---------- Run | Yrd Mat Min Machines Disabled 5 | . 4 1 Max in Single Turn 2 | . 2 1 Machines Repaired . | . . . Machines Dismantled . | . . . Machines Sabotaged . | . . . Overloaded Fab Kills . | . . . Hacking | -11 -10 -10 --------- Run | Yrd Mat Min Machines Accessed 9 | . 8 1 Terminals 8 | . 7 1 Fabricators . | . . . Repair Stations 1 | . 1 . Recycling Units . | . . . Scanalyzers . | . . . Garrison Access . | . . . Total Hacks 38 | . 35 3 Successful 18 | . 18 . Failed 19 | . 16 3 Catastrophic 6 | . 5 1 Database Lockouts 1 | . 1 . Manual 22 | . 19 3 Terminals 34 | . 31 3 Fabricators . | . . . Repair Stations 4 | . 4 . Recycling Units . | . . . Scanalyzers . | . . . Garrison Access . | . . . Terminal Hacks 16 | . 16 . Record 1 | . 1 . Robot Schematic 1 | . 1 . Robot Analysis 8 | . 8 . Prototype ID Bank 3 | . 3 . Branch Access Points 1 | . 1 . Terminal Index 1 | . 1 . Unreport Threat 1 | . 1 . Fabricator Hacks . | . . . Repair Station Hacks 2 | . 2 . Scan Component 1 | . 1 . Repair 1 | . 1 . Recycling Unit Hacks . | . . . Scanalyzer . | . . . Garrison Access Hacks . | . . . Unauthorized Hacks . | . . . Terminals . | . . . Fabricators . | . . . Repair Stations . | . . . Recycling Units . | . . . Scanalyzers . | . . . Garrison Access . | . . . Data Cores Recovered . | . . . Used . | . . . Hacking Detections 9 | . 8 1 Full Trace Events 2 | . 2 . Feedback Events . | . . . Feedback Blocked . | . . . Robot Schematics Acquired 1 | . 1 . Robots Built . | . . . Authchips . | . . . Time . | . . . Total Robot Build Rating . | . . . Part Schematics Acquired . | . . . Parts Built . | . . . Authchips . | . . . Time . | . . . Total Part Build Rating . | . . . Parts Repaired 1 | . 1 . Time 26 | . 26 . Parts Recycled . | . . . Recycled Matter . | . . . Retrieved Matter . | . . . Retrieved Components . | . . . Parts Scanalyzed . | . . . Part Schematics Acquired . | . . . Parts Damaged . | . . . Bothacking | -11 -10 -10 ------------ Run | Yrd Mat Min Used RIF Installer . | . . . Robots Hacked . | . . . Non-combat . | . . . Combat . | . . . Robot Hacks Applied . | . . . Relay Couplers Released . | . . . Fabnet Peak Effective % . | . . . Robots Rewired . | . . . Allies Hacked . | . . . Hacks Repelled . | . . . Allies | -11 -10 -10 -------- Run | Yrd Mat Min Total Allies 3 | . . 3 Largest Group 3 | . . 3 Highest-Rated Group 40 | . . 40 Highest-Rated Ally 16 | . . 16 Total Orders . | . . . Ally Attacks 3 | . . 3 Total Damage 14 | . . 14 Kills . | . . . Allies Corrupted . | . . . Allies Melted . | . . . Intel | -11 -10 -10 ------- Run | Yrd Mat Min Robot Analysis Total 7 | . 7 . Derelict Logs Recovered 1 | . . 1 Drone Launches . | . . . Drone Recoveries . | . . . Exploration | -11 -10 -10 ------------- Run | Yrd Mat Min Turns Passed 1350 | 96 935 319 Spaces Moved 1208 | 50 801 357 Core 3 | 3 . . Treads . | . . . Legs . | . . . Wheels 666 | 47 619 . Hover 539 | . 182 357 Flight . | . . . Fastest Speed 50 | 50 56 56 Average Speed 70 | 89 74 57 Slowest Speed 150 | 150 120 120 Overloaded Moves . | . . . Propulsion Burnouts . | . . . Robots Hopped . | . . . Cave-ins Triggered . | . . . Exploration Rate (%) 57 | 5 98 70 Regions Visited 2 Branch Regions 1 Pre-discovered Areas 1 | . . 1 Known Exits Taken 1 | . 1 . Unknown Exits Taken 1 | 1 . . Scrap Searched . | . . . Spaces Dug . | . . . Terrain Destroyed 120 | . 85 35 Melee . | . . . Projectile . | . . . AOE 120 | . 85 35 Terrain Rammed . | . . . Walls Destroyed . | . . . Machines Disabled . | . . . Actions | -11 -10 -10 --------- Run | Yrd Mat Min Total 1478 | 74 997 407 Wait 75 | . 68 7 Move 1206 | 49 800 357 Hop . | . . . Pick Up 18 | . 17 1 Fast Attach 13 | 8 5 . Attach 4 | . 2 2 Detach 1 | 1 . . Swap 26 | 3 20 3 Drop 18 | 2 15 1 Fire 117 | 11 70 36 Melee . | . . . Ram . | . . . Kick . | . . . Crush . | . . . Escape Stasis . | . . . Rewire . | . . . Trap . | . . . Miscellaneous . | . . . Route ------- -11/Scrapyard -10/Materials (discovered 4 exits: [*Mat x3] / *Min) -10/Mines (discovered 2 exits: [*Mat x2]) History --------- Turn | Location | Event 19 | -11/Scrapyard | Discovered new exit (range 15) 97 | -11/Scrapyard | Entered Materials 306 | -10/Materials | Discovered new exit (range 12) 317 | -10/Materials | Central database locked down 468 | -10/Materials | Build established: Mutant 488 | -10/Materials | Discovered new exit (range 12) 504 | -10/Materials | Discovered new exit (range 13) 772 | -10/Materials | Build established: Scavenger-Mutant 805 | -10/Materials | Repaired Lgt. Cannon 836 | -10/Materials | Discovered new exit (range 9) 909 | -10/Materials | Identified exit to Mines 1032 | -10/Materials | Entered Mines 1057 | -10/Mines | Assisted by bots powering up and referring to "LRC-V3" 1057 | -10/Mines | Learned 4 Materials zone layouts 1069 | -10/Mines | Discovered new exit (range 8) 1145 | -10/Mines | Received a Rocket Launcher from a helpful Derelict 1154 | -10/Mines | Destroyed 8 combat bots 1166 | -10/Mines | Build established: Mutant 1244 | -10/Mines | Discovered new exit (range 7) 1299 | -10/Mines | Assembled infested the area 1304 | -10/Mines | Learned location of Storage (-9) 1304 | -10/Mines | Assisted by a Guerilla fighting off Assembled 1326 | -10/Mines | Core integrity fell below 50% 1348 | -10/Mines | Core integrity fell below 20% 1351 | -10/Mines | Destroyed self with Rocket Launcher Last Messages --------------- World map updated: -9/Storage. 01306_ YR-SMW(g): "We scattered so the Unaware couldn't effectively use their advantage in numbers, and I suggest you do the same." 01306_ YR-SMW(g) slips back into the shadows. 01306_ Hover Unit destroyed. 01321_ as-27801 destroyed. 01325_ as-65658 destroyed. 01331_ as-60305 destroyed. 01337_ as-20811 destroyed. 01340_ as-08418 destroyed. 01341_ Hover Unit destroyed. 01343_ Destroyed Asb. Hover Unit. 01343_ Lgt. Cannon destroyed. 01343_ Hover Unit destroyed. 01347_ as-45988 destroyed. 01347_ as-79830 destroyed. 01347_ as-16889 destroyed. 01349_ Matter Pump disabled. 01349_ as-59694 destroyed. 01351_ as-79425 destroyed. Map ----- +----------------------------------------------------+ | | | | | | | | | | | | | | | | | ????????????????????????????????????????? | | ????????????????????????????????????????? | | ????????????????????????????????????????? | | ?????????????????????????#??????????????? | | ???????????????????????## ??????????????? | | ??????????????????????# ??????????????? | | ?????????????????????# ????????????? | | ???????????????????## ????????????? | | ?????????????????### ????????????? | | ???????####?????## #?????????????? | | ??????## #????# #??????????????? | | ??????# #???# #??????????????? | | ??????# ##??# a ##?????????????? | | ???????# ### "" ##??? ##??????? | | ????????# # " #;# ##?????? | | ??????????# " #?????? | | ??????????## % *= ?????? | | ???????????## @ |%##????????????? | | ???????????### !=!#?????????????? | | ???????#####T# #### =*%##?????????????? | | ???????# ###????##%=##??????????????? | | ???????# #???????# ##???????????????? | | ???????# #???????# #????????????????? | | ???????# < #???????# #????????????????? | | ???????# #???????# #????????????????? | | ???????# #???????# #????????# ??????? | | ???????### ###???????# #?????### ?????? | | ?????????# #?????????# #????# ?????? | | ?????????# #?????????# #???? ??????? | | ?????????# #?????????# #???# ???????? | | ?????????# ########### #???# ???????? | | ?????????# = #??## ????????? | | ?????????######*###### #?## ?????????? | | ??????????#####*#????# #?# #?????????? | | ??????????# #????# #?# #?????????? | | ??????????# #####????# #?? #?????????? | | ??????????# #????????# #??# #??????????? | | ??????????# #????????# #### ###????????? | | ??????????# #????????# #####????? | | ??????????# #????????###### ##???? | | ??????????# #????????????## ##??? | | ??????????# #????????????# #??? | +----------------------------------------------------+ Best States ------------- Heat Dissipation 25 Energy Generation 14 Energy Capacity 250 Matter Stores 300 Matter Capacity 300 Sight Range 16 Terrain Scan Range 16 Terrain Scan Density 10 Evasion (%) 53 Item Schematics ----------------- None Robot Schematics ------------------ M-13 Machinist | -10/Materials | Hacked Fabricated ------------ Nothing Alien Tech Used ----------------- None Achievements -------------- None Challenges ------------ None Game ------ Seed DeepMakeshiftTelecube Manual? 0 Play Time 00:15:30 Cumulative 27.5 hours Start 2025.01.18 @ 13:26:50 End 2025.01.18 @ 13:41:47 Sessions 1 Manual Loads 0 Difficulty Rogue Special Mode None Game No. 21 Rogue 21 Adventurer 0 Explorer 0 Win Type - Total 0 Types 0/0/0/0/0/0/0/0/0 Lore% 18 Gallery% 25 Achievement% 32 Wizard Run 0 Options --------- Layout 0 ASCII 0 Keyboard 1 Movement Arrows Keybinds 0 Fullscreen 1 Font 12/Proggy Map View 83x54 Zoom Use 0% Tactical HUD 1 Map Filters NONE Filters NONE Steam 0 RUN: 804486d0-f8aa-4bf6-a362-1b0217148e6e